{"text_format":"1","workbook":"xlsx","n_sheets":11,"sheets":["說明","圖表","SPEAK","Config","學科","國中學科","LogIn","國文","體育","實習","軍訓"],"not_rendered":{"charts":2,"images":0,"macros":1,"external_links":0,"defined_names":19,"comments":4,"pivot_tables":0},"unopened":[],"bounds":{"document_bytes":16777216,"sheet_cells":100000,"rows_first":2000,"rows_last":500,"rows_between":2000,"halvings":0,"cell_chars":16384,"cell_head_chars":4096},"cells_cut":0,"cells_raw":0,"read":"whole","date_system":"1900"}

{"sheet":"說明","index":0,"n_rows":20,"n_cols":1,"rows_kept":20,"cut":false,"hidden":true,"merged":[]}
["說明"]
["請先另存新檔再作授課檢查，伺服器設定，校內(http://10.1.1.15/CSN/)，校外(http://203.71.70.15/CSN/)"]
["2014/3/27 上午 10:24:19開啟EXCEL"]
[]
[]
[]
[]
[]
[]
[]
[]
[]
[]
[]
[]
[]
[]
[]
[]
[" "]

{"sheet":"圖表","index":1,"n_rows":14,"n_cols":9,"rows_kept":14,"cut":false,"hidden":true,"merged":[[0,0,0,9]]}
[]
["學號","座號","姓名","成績",null,"組距","人數","平均",{"$f":"AVERAGE(D3:D62)","v":{"$error":"#DIV/0!"}}]
[null,null,null,null,null,"100以上",null,"頂標",{"$f":"PERCENTILE(D3:D62,88%)","v":{"$error":"#NUM!"}}]
[null,null,null,null,null,"90-100",null,"前標",{"$f":"PERCENTILE(D3:D62,75%)","v":{"$error":"#NUM!"}}]
[null,null,null,null,null,"80-89",null,"均標",{"$f":"PERCENTILE(D3:D62,50%)","v":{"$error":"#NUM!"}}]
[null,null,null,null,null,"70-79",null,"後標",{"$f":"PERCENTILE(D3:D62,25%)","v":{"$error":"#NUM!"}}]
[null,null,null,null,null,"60-69",null,"底標",{"$f":"PERCENTILE(D3:D62,12%)","v":{"$error":"#NUM!"}}]
[null,null,null,null,null,"50-59",null,"標準差",{"$f":"STDEVA(D3:D62)","v":{"$error":"#DIV/0!"}}]
[null,null,null,null,null,"40-49"]
[null,null,null,null,null,"30-39"]
[null,null,null,null,null,"20-29"]
[null,null,null,null,null,"10-19"]
[null,null,null,null,null," 0- 9"]
[null,null,null,null,null," 0以下(含無分數)"]

{"sheet":"SPEAK","index":2,"n_rows":2,"n_cols":1,"rows_kept":2,"cut":false,"hidden":true,"merged":[]}
["說明"]
["請先另存新檔再作授課檢查，伺服器設定，校內(http://10.1.1.15/CSN/)，校外(http://203.71.70.15/CSN/)"]

{"sheet":"Config","index":3,"n_rows":19,"n_cols":3,"rows_kept":19,"cut":false,"hidden":true,"merged":[]}
[null,"伺服器網址","http://10.1.1.15/CSN/"]
[null,"帳號",""]
["2007/7/12 下午 02:49:39開啟EXCEL","密碼",""]
[null,"Excel密碼","teac"]
[null,"保護","CS23453031"]
[null,"學年學期","1022"]
[null,"最大考次",5]
[null,"平時成績比率",30]
[null,"期中考比率",40]
[null,"期末考比率",30]
["第一次月考起","第一次月考起","2014-03-13"]
["第一次月考迄","第一次月考迄","2014-03-26"]
["第二次月考起","第二次月考起","2014-05-06"]
["第二次月考迄","第二次月考迄","2014-05-19"]
["第三次月考起","第三次月考起","2014-04-17"]
["第三次月考迄","第三次月考迄","2014-04-30"]
["期末考",null,"2009-01-01"]
[null,"成績模式"]
[null,"最後使用工作表","說明"]

{"sheet":"學科","index":4,"n_rows":68,"n_cols":35,"rows_kept":68,"cut":false,"hidden":true,"merged":[[0,3,0,34],[2,0,4,0],[2,1,4,1],[2,3,2,27],[2,32,2,33],[2,2,4,2],[2,28,2,31],[3,30,4,30],[3,32,4,32],[3,26,4,26]]}
["班級編號",null,null,"學年學期"]
["課程編號","課程序號","課程類型","課程名稱",null,null,null,null,null,null,null,null,null,null,null,null,null,null,null,null,null,null,null,null,null,"科任教師：",null,null,null,null,null,"簽章："]
["學號","座號","姓名","日          常          考          查          成          績",null,null,null,null,null,null,null,null,null,null,null,null,null,null,null,null,null,null,null,null,null,null,null,null," 定期考成績",null,null,null,"期末考",null,"學    期"]
[null,null,null,1,2,3,4,5,6,7,8,9,10,11,12,13,14,15,16,17,18,19,20,"平時考第一次","平時考第二次","平時考第三次","平均","成    績","一","二","平均","成績","成績","成績"]
[null,null,null,null,null,null,null,null,null,null,null,null,null,null,null,null,null,null,null,null,null,null,null,null,null,null,null,40,null,null,null,30,null,30,"總成績"]
[]
[]
[]
[]
[]
[]
[]
[]
[]
[]
[]
[]
[]
[]
[]
[]
[]
[]
[]
[]
[]
[]
[]
[]
[]
[]
[]
[]
[]
[]
[]
[]
[]
[]
[]
[]
[]
[]
[]
[]
[]
[]
[]
[]
[]
[]
[]
[]
[]
[]
[]
[]
[]
[]
[]
[]
[]
[]
[]
[]
[]
[null,"附註：(1)各次日常考查成績平均、學期總成績，均以整數計。"]
[null,"      (2)百分比之成績計至小數第一位。"]

{"sheet":"國中學科","index":5,"n_rows":68,"n_cols":34,"rows_kept":68,"cut":false,"hidden":true,"merged":[[0,3,0,33],[2,0,4,0],[2,1,4,1],[2,3,2,27],[2,2,4,2],[2,28,2,32],[3,31,4,31],[3,26,4,26]]}
["班級編號",null,null,"學年學期"]
["課程編號","課程序號","課程類型","課程名稱",null,null,null,null,null,null,null,null,null,null,null,null,null,null,null,null,null,"科任教師：",null,null,null,null,null,null,null,"簽章："]
["學號","座號","姓名","日          常          考          查          成          績",null,null,null,null,null,null,null,null,null,null,null,null,null,null,null,null,null,null,null,null,null,null,null,null," 定期考成績",null,null,null,null,"學    期"]
[null,null,null,1,2,3,4,5,6,7,8,9,10,11,12,13,14,15,16,17,18,19,20,"平時考第一次","平時考第二次","平時考第三次","平均","成    績","一","二","三","平均","成績"]
[null,null,null,null,null,null,null,null,null,null,null,null,null,null,null,null,null,null,null,null,null,null,null,null,null,null,null,50,null,null,null,null,50,"總成績"]
[]
[]
[]
[]
[]
[]
[]
[]
[]
[]
[]
[]
[]
[]
[]
[]
[]
[]
[]
[]
[]
[]
[]
[]
[]
[]
[]
[]
[]
[]
[]
[]
[]
[]
[]
[]
[]
[]
[]
[]
[]
[]
[]
[]
[]
[]
[]
[]
[]
[]
[]
[]
[]
[]
[]
[]
[]
[]
[]
[]
[]
[null,"附註：(1)各次日常考查成績平均、學期總成績，均以整數計。"]
[null,"      (2)百分比之成績計至小數第一位。"]

{"sheet":"LogIn","index":6,"n_rows":0,"n_cols":0,"rows_kept":0,"cut":false,"hidden":false,"merged":[]}

{"sheet":"國文","index":7,"n_rows":5,"n_cols":29,"rows_kept":5,"cut":false,"hidden":true,"merged":[[2,0,4,0],[3,11,3,17],[2,1,4,1],[2,2,4,2],[3,3,3,10],[2,3,2,19],[3,18,4,18],[2,28,4,28],[2,27,4,27],[0,3,0,28],[3,21,4,21],[3,22,4,22],[3,23,4,23],[3,25,4,25],[2,20,2,24],[2,25,2,26],[3,20,4,20]]}
["班級編號",null,null,"學年學期"]
["課程編號","課程序號","課程類型","課程名稱",null,null,null,null,null,null,null,null,null,null,null,null,null,null,null,"科任教師：",null,null,"教師姓名",null,null,null,null,"簽章："]
["學號","座號","姓名","平   時  成   績",null,null,null,null,null,null,null,null,null,null,null,null,null,null,null,null,"期中考",null,null,null,null,"期末考",null,"學期總成績","座號"]
[null,null,null,"作文",null,null,null,null,null,null,null,"日常考查",null,null,null,null,null,null,"平均","成績","暑輔",1,2,"平均","成績","分數","成績"]
[null,null,null,1,2,3,4,5,6,"平均","%",1,2,3,4,5,"平均","%",null,"%",null,null,null,null,"%",null,"%"]

{"sheet":"體育","index":8,"n_rows":55,"n_cols":16,"rows_kept":55,"cut":false,"hidden":true,"merged":[[0,3,0,15],[2,0,4,0],[2,1,4,1],[2,3,2,9],[2,10,2,11],[2,12,2,13],[2,2,4,2],[1,8,1,9]]}
["班級編號",null,null,"學年學期"]
["課程編號","課程序號","課程類型","課程名稱",null,null,null,null,"擔任教師：",null,null,null,null,null,"先生        蓋章"]
["學號","座號","姓名","技    能     成     績",null,null,null,null,null,null,"體育常識",null,"學習精神",null,"學    期","座"]
[null,null,null,null,null,null,null,null,null,"成績",null,"成績",null,"成績"]
[null,null,null,null,null,null,null,null,"平均",0.5,"成績",0.25,1,0.25,"總成績","號"]
[null,null,null,null,null,null,null,null,{"$f":"IF(COUNT(D6:H6)=0,\"\",AVERAGE(D6:H6))","v":""},{"$f":"IF(I6=\"\",\"\",I6*0.5)","v":""},null,{"$f":"IF(K6=\"\",\"\",K6*$L$5)","v":""},null,{"$f":"IF(M6=\"\",\"\",M6*$N$5)","v":""},{"$f":"IF(OR(J6=\"\",L6=\"\",N6=0),\"缺\",ROUND(J6+L6+N6,0))","v":"缺"},1]
[null,null,null,null,null,null,null,null,"",{"$f":"IF(I7=\"\",\"\",I7*0.5)","v":""},null,{"$f":"IF(K7=\"\",\"\",K7*0.25)","v":""},null,{"$f":"IF(M7=\"\",\"\",M7*$N$5)","v":""},"缺",2]
[null,null,null,null,null,null,null,null,"",{"$f":"IF(I8=\"\",\"\",I8*0.5)","v":""},null,"",null,"","缺",3]
[null,null,null,null,null,null,null,null,"",{"$f":"IF(I9=\"\",\"\",I9*$J$5)","v":""},null,"",null,"","缺",4]
[null,null,null,null,null,null,null,null,"",{"$f":"IF(I10=\"\",\"\",I10*$J$5)","v":""},null,"",null,"","缺",5]
[null,null,null,null,null,null,null,null,"","",null,"",null,"","缺",6]
[null,null,null,null,null,null,null,null,"","",null,"",null,"","缺",7]
[null,null,null,null,null,null,null,null,"","",null,"",null,"","缺",8]
[null,null,null,null,null,null,null,null,"","",null,"",null,"","缺",9]
[null,null,null,null,null,null,null,null,"","",null,"",null,"","缺",10]
[null,null,null,null,null,null,null,null,"","",null,"",null,"","缺",11]
[null,null,null,null,null,null,null,null,"","",null,"",null,"","缺",12]
[null,null,null,null,null,null,null,null,"","",null,"",null,"","缺",13]
[null,null,null,null,null,null,null,null,"","",null,"",null,"","缺",14]
[null,null,null,null,null,null,null,null,"","",null,"",null,"","缺",15]
[null,null,null,null,null,null,null,null,"","",null,"",null,"","缺",16]
[null,null,null,null,null,null,null,null,"","",null,"",null,"","缺",17]
[null,null,null,null,null,null,null,null,"","",null,"",null,"","缺",18]
[null,null,null,null,null,null,null,null,"","",null,"",null,"","缺",19]
[null,null,null,null,null,null,null,null,"","",null,"",null,"","缺",20]
[null,null,null,null,null,null,null,null,"","",null,"",null,"","缺",21]
[null,null,null,null,null,null,null,null,"","",null,"",null,"","缺",22]
[null,null,null,null,null,null,null,null,"","",null,"",null,"","缺",23]
[null,null,null,null,null,null,null,null,"","",null,"",null,"","缺",24]
[null,null,null,null,null,null,null,null,"","",null,"",null,"","缺",25]
[null,null,null,null,null,null,null,null,"","",null,"",null,"","缺",26]
[null,null,null,null,null,null,null,null,"","",null,"",null,"","缺",27]
[null,null,null,null,null,null,null,null,"","",null,"",null,"","缺",28]
[null,null,null,null,null,null,null,null,"","",null,"",null,"","缺",29]
[null,null,null,null,null,null,null,null,"","",null,"",null,"","缺",30]
[null,null,null,null,null,null,null,null,"","",null,"",null,"","缺",31]
[null,null,null,null,null,null,null,null,"","",null,"",null,"","缺",32]
[null,null,null,null,null,null,null,null,"","",null,"",null,"",{"$f":"IF(OR(J38=\"\",L38=\"\",N38=0),\"缺\",ROUND(J38+L38+N38,0))","v":"缺"},33]
[null,null,null,null,null,null,null,null,"","",null,"",null,"","缺",34]
[null,null,null,null,null,null,null,null,"","",null,"",null,"","缺",35]
[null,null,null,null,null,null,null,null,"","",null,"",null,"","缺",36]
[null,null,null,null,null,null,null,null,"","",null,"",null,"","缺",37]
[null,null,null,null,null,null,null,null,"","",null,"",null,"","缺",38]
[null,null,null,null,null,null,null,null,"","",null,"",null,"","缺",39]
[null,null,null,null,null,null,null,null,"","",null,"",null,"","缺",40]
[null,null,null,null,null,null,null,null,"","",null,"",null,"","缺",41]
[null,null,null,null,null,null,null,null,"","",null,"",null,"","缺",42]
[null,null,null,null,null,null,null,null,"","",null,"",null,"","缺",43]
[null,null,null,null,null,null,null,null,"","",null,"",null,"","缺",44]
[null,null,null,null,null,null,null,null,"","",null,{"$f":"IF(K50=\"\",\"\",K50*0.3)","v":""},null,"","缺",45]
[]
[null,"附註：(1)期考結束後三日內本記錄表請送教務處。 "]
[null,"       (2)成績記載，及格者用黑藍色，不及格用紅色。"]
[null,"       (3)各次日常考查成績平均及各次臨時試驗成績、學期總成績，均以整數計。"]
[null,"         (4)百分比之成績計至小數第一位。"]

{"sheet":"實習","index":9,"n_rows":69,"n_cols":33,"rows_kept":69,"cut":false,"hidden":true,"merged":[[1,0,1,32],[7,22,7,31],[7,32,8,32],[5,0,5,32],[3,0,3,32],[7,3,7,4],[7,5,7,11],[7,12,7,21],[7,0,8,2]]}
[]
["台中高工進修學校九十二學年度第二學期"]
[]
["922072  34621 YY387  建圖二甲    建築製圖實習          實習成績登記表"]
[]
["每週教學時數：    6      小時                                     任課教師：                    (簽章)"]
[]
[null,null,null,"出席勤惰",null,"學  習  精  神",null,null,null,null,null,null,"操  作  技  術",null,null,null,null,null,null,null,null,null,"實  習  報  告",null,null,null,null,null,null,null,null,null,"學期\n成績"]
[null,null,null,"成績",0.2,1,2,3,4,5,"成績",0.2,1,2,3,4,5,6,7,8,"成績",0.4,1,2,3,4,5,6,7,8,"成績",0.2]
[null,null,null,null,{"$f":"D10*0.2","v":0}," "," "," "," ",null,{"$f":"AVERAGE(F10:J10)","v":{"$error":"#DIV/0!"}},{"$f":"K10*0.2","v":{"$error":"#DIV/0!"}},null,null,null,null,null,null,null,null,{"$f":"AVERAGE(M10:T10)","v":{"$error":"#DIV/0!"}},{"$f":"U10*0.4","v":{"$error":"#DIV/0!"}},null,null,null,null,null,null,null,null,{"$f":"AVERAGE(W10:AD10)","v":{"$error":"#DIV/0!"}},{"$f":"AE10*0.2","v":{"$error":"#DIV/0!"}},{"$f":"ROUNDUP(E10+L10+V10+AF10,0)","v":{"$error":"#DIV/0!"}}]
[null,null,null,null,{"$f":"D11*0.2","v":0},null,null,null,null,null,{"$f":"AVERAGE(F11:J11)","v":{"$error":"#DIV/0!"}},{"$f":"K11*0.2","v":{"$error":"#DIV/0!"}},null,null,null,null,null,null,null,null,{"$f":"AVERAGE(M11:T11)","v":{"$error":"#DIV/0!"}},{"$f":"U11*0.4","v":{"$error":"#DIV/0!"}},null,null,null,null,null,null,null,null,{"$f":"AVERAGE(W11:AD11)","v":{"$error":"#DIV/0!"}},{"$f":"AE11*0.2","v":{"$error":"#DIV/0!"}},{"$f":"ROUNDUP(E11+L11+V11+AF11,0)","v":{"$error":"#DIV/0!"}}]
[null,null,null,null,0,null,null,null,null,null,{"$error":"#DIV/0!"},{"$error":"#DIV/0!"},null,null,null,null,null,null,null,null,{"$error":"#DIV/0!"},{"$error":"#DIV/0!"},null,null,null,null,null,null,null,null,{"$error":"#DIV/0!"},{"$error":"#DIV/0!"},{"$error":"#DIV/0!"}]
[null,null,null,null,0,null,null,null,null,null,{"$error":"#DIV/0!"},{"$error":"#DIV/0!"},null,null,null,null,null,null,null,null,{"$error":"#DIV/0!"},{"$error":"#DIV/0!"},null,null,null,null,null,null,null,null,{"$error":"#DIV/0!"},{"$error":"#DIV/0!"},{"$error":"#DIV/0!"}]
[null,null,null,null,0,null,null,null,null,null,{"$error":"#DIV/0!"},{"$error":"#DIV/0!"},null,null,null,null,null,null,null,null,{"$error":"#DIV/0!"},{"$error":"#DIV/0!"},null,null,null,null,null,null,null,null,{"$error":"#DIV/0!"},{"$error":"#DIV/0!"},{"$error":"#DIV/0!"}]
[null,null,null,null,0,null,null,null,null,null,{"$error":"#DIV/0!"},{"$error":"#DIV/0!"},null,null,null,null,null,null,null,null,{"$error":"#DIV/0!"},{"$error":"#DIV/0!"},null,null,null,null,null,null,null,null,{"$error":"#DIV/0!"},{"$error":"#DIV/0!"},{"$error":"#DIV/0!"}]
[null,null,null,null,0,null,null,null,null,null,{"$error":"#DIV/0!"},{"$error":"#DIV/0!"},null,null,null,null,null,null,null,null,{"$error":"#DIV/0!"},{"$error":"#DIV/0!"},null,null,null,null,null,null,null,null,{"$error":"#DIV/0!"},{"$error":"#DIV/0!"},{"$error":"#DIV/0!"}]
[null,null,null,null,0,null,null,null,null,null,{"$error":"#DIV/0!"},{"$error":"#DIV/0!"},null,null,null,null,null,null,null,null,{"$error":"#DIV/0!"},{"$error":"#DIV/0!"},null,null,null,null,null,null,null,null,{"$error":"#DIV/0!"},{"$error":"#DIV/0!"},{"$error":"#DIV/0!"}]
[null,null,null,null,0,null,null,null,null,null,{"$error":"#DIV/0!"},{"$error":"#DIV/0!"},null,null,null,null,null,null,null,null,{"$error":"#DIV/0!"},{"$error":"#DIV/0!"},null,null,null,null,null,null,null,null,{"$error":"#DIV/0!"},{"$error":"#DIV/0!"},{"$error":"#DIV/0!"}]
[null,null,null,null,0,null,null,null,null,null,{"$error":"#DIV/0!"},{"$error":"#DIV/0!"},null,null,null,null,null,null,null,null,{"$error":"#DIV/0!"},{"$error":"#DIV/0!"},null,null,null,null,null,null,null,null,{"$error":"#DIV/0!"},{"$error":"#DIV/0!"},{"$error":"#DIV/0!"}]
[null,null,null,null,0,null,null,null,null,null,{"$error":"#DIV/0!"},{"$error":"#DIV/0!"},null,null,null,null,null,null,null,null,{"$error":"#DIV/0!"},{"$error":"#DIV/0!"},null,null,null,null,null,null,null,null,{"$error":"#DIV/0!"},{"$error":"#DIV/0!"},{"$error":"#DIV/0!"}]
[null,null,null,null,0,null,null,null,null,null,{"$error":"#DIV/0!"},{"$error":"#DIV/0!"},null,null,null,null,null,null,null,null,{"$error":"#DIV/0!"},{"$error":"#DIV/0!"},null,null,null,null,null,null,null,null,{"$error":"#DIV/0!"},{"$error":"#DIV/0!"},{"$error":"#DIV/0!"}]
[null,null,null,null,0,null,null,null,null,null,{"$error":"#DIV/0!"},{"$error":"#DIV/0!"},null,null,null,null,null,null,null,null,{"$error":"#DIV/0!"},{"$error":"#DIV/0!"},null,null,null,null,null,null,null,null,{"$error":"#DIV/0!"},{"$error":"#DIV/0!"},{"$error":"#DIV/0!"}]
[null,null,null,null,0,null,null,null,null,null,{"$error":"#DIV/0!"},{"$error":"#DIV/0!"},null,null,null,null,null,null,null,null,{"$error":"#DIV/0!"},{"$error":"#DIV/0!"},null,null,null,null,null,null,null,null,{"$error":"#DIV/0!"},{"$error":"#DIV/0!"},{"$error":"#DIV/0!"}]
[null,null,null,null,0,null,null,null,null,null,{"$error":"#DIV/0!"},{"$error":"#DIV/0!"},null,null,null,null,null,null,null,null,{"$error":"#DIV/0!"},{"$error":"#DIV/0!"},null,null,null,null,null,null,null,null,{"$error":"#DIV/0!"},{"$error":"#DIV/0!"},{"$error":"#DIV/0!"}]
[null,null,null,null,0,null,null,null,null,null,{"$error":"#DIV/0!"},{"$error":"#DIV/0!"},null,null,null,null,null,null,null,null,{"$error":"#DIV/0!"},{"$error":"#DIV/0!"},null,null,null,null,null,null,null,null,{"$error":"#DIV/0!"},{"$error":"#DIV/0!"},{"$error":"#DIV/0!"}]
[null,null,null,null,0,null,null,null,null,null,{"$error":"#DIV/0!"},{"$error":"#DIV/0!"},null,null,null,null,null,null,null,null,{"$error":"#DIV/0!"},{"$error":"#DIV/0!"},null,null,null,null,null,null,null,null,{"$error":"#DIV/0!"},{"$error":"#DIV/0!"},{"$error":"#DIV/0!"}]
[null,null,null,null,0,null,null,null,null,null,{"$error":"#DIV/0!"},{"$error":"#DIV/0!"},null,null,null,null,null,null,null,null,{"$error":"#DIV/0!"},{"$error":"#DIV/0!"},null,null,null,null,null,null,null,null,{"$error":"#DIV/0!"},{"$error":"#DIV/0!"},{"$error":"#DIV/0!"}]
[null,null,null,null,0,null,null,null,null,null,{"$error":"#DIV/0!"},{"$error":"#DIV/0!"},null,null,null,null,null,null,null,null,{"$error":"#DIV/0!"},{"$error":"#DIV/0!"},null,null,null,null,null,null,null,null,{"$error":"#DIV/0!"},{"$error":"#DIV/0!"},{"$error":"#DIV/0!"}]
[null,null,null,null,0,null,null,null,null,null,{"$error":"#DIV/0!"},{"$error":"#DIV/0!"},null,null,null,null,null,null,null,null,{"$error":"#DIV/0!"},{"$error":"#DIV/0!"},null,null,null,null,null,null,null,null,{"$error":"#DIV/0!"},{"$error":"#DIV/0!"},{"$error":"#DIV/0!"}]
[null,null,null,null,0,null,null,null,null,null,{"$error":"#DIV/0!"},{"$error":"#DIV/0!"},null,null,null,null,null,null,null,null,{"$error":"#DIV/0!"},{"$error":"#DIV/0!"},null,null,null,null,null,null,null,null,{"$error":"#DIV/0!"},{"$error":"#DIV/0!"},{"$error":"#DIV/0!"}]
[null,null,null,null,0,null,null,null,null,null,{"$error":"#DIV/0!"},{"$error":"#DIV/0!"},null,null,null,null,null,null,null,null,{"$error":"#DIV/0!"},{"$error":"#DIV/0!"},null,null,null,null,null,null,null,null,{"$error":"#DIV/0!"},{"$error":"#DIV/0!"},{"$error":"#DIV/0!"}]
[null,null,null,null,0,null,null,null,null,null,{"$error":"#DIV/0!"},{"$error":"#DIV/0!"},null,null,null,null,null,null,null,null,{"$error":"#DIV/0!"},{"$error":"#DIV/0!"},null,null,null,null,null,null,null,null,{"$error":"#DIV/0!"},{"$error":"#DIV/0!"},{"$error":"#DIV/0!"}]
[null,null,null,null,0,null,null,null,null,null,{"$error":"#DIV/0!"},{"$error":"#DIV/0!"},null,null,null,null,null,null,null,null,{"$error":"#DIV/0!"},{"$error":"#DIV/0!"},null,null,null,null,null,null,null,null,{"$error":"#DIV/0!"},{"$error":"#DIV/0!"},{"$error":"#DIV/0!"}]
[null,null,null,null,0,null,null,null,null,null,{"$error":"#DIV/0!"},{"$error":"#DIV/0!"},null,null,null,null,null,null,null,null,{"$error":"#DIV/0!"},{"$error":"#DIV/0!"},null,null,null,null,null,null,null,null,{"$error":"#DIV/0!"},{"$error":"#DIV/0!"},{"$error":"#DIV/0!"}]
[null,null,null,null,0,null,null,null,null,null,{"$error":"#DIV/0!"},{"$error":"#DIV/0!"},null,null,null,null,null,null,null,null,{"$error":"#DIV/0!"},{"$error":"#DIV/0!"},null,null,null,null,null,null,null,null,{"$error":"#DIV/0!"},{"$error":"#DIV/0!"},{"$error":"#DIV/0!"}]
[null,null,null,null,0,null,null,null,null,null,{"$error":"#DIV/0!"},{"$error":"#DIV/0!"},null,null,null,null,null,null,null,null,{"$error":"#DIV/0!"},{"$error":"#DIV/0!"},null,null,null,null,null,null,null,null,{"$error":"#DIV/0!"},{"$error":"#DIV/0!"},{"$error":"#DIV/0!"}]
[null,null,null,null,0,null,null,null,null,null,{"$error":"#DIV/0!"},{"$error":"#DIV/0!"},null,null,null,null,null,null,null,null,{"$error":"#DIV/0!"},{"$error":"#DIV/0!"},null,null,null,null,null,null,null,null,{"$error":"#DIV/0!"},{"$error":"#DIV/0!"},{"$error":"#DIV/0!"}]
[null,null,null,null,0,null,null,null,null,null,{"$error":"#DIV/0!"},{"$error":"#DIV/0!"},null,null,null,null,null,null,null,null,{"$error":"#DIV/0!"},{"$error":"#DIV/0!"},null,null,null,null,null,null,null,null,{"$error":"#DIV/0!"},{"$error":"#DIV/0!"},{"$error":"#DIV/0!"}]
[null,null,null,null,0,null,null,null,null,null,{"$error":"#DIV/0!"},{"$error":"#DIV/0!"},null,null,null,null,null,null,null,null,{"$error":"#DIV/0!"},{"$error":"#DIV/0!"},null,null,null,null,null,null,null,null,{"$error":"#DIV/0!"},{"$error":"#DIV/0!"},{"$error":"#DIV/0!"}]
[null,null,null,null,0,null,null,null,null,null,{"$error":"#DIV/0!"},{"$error":"#DIV/0!"},null,null,null,null,null,null,null,null,{"$error":"#DIV/0!"},{"$error":"#DIV/0!"},null,null,null,null,null,null,null,null,{"$error":"#DIV/0!"},{"$error":"#DIV/0!"},{"$error":"#DIV/0!"}]
[null,null,null,null,0,null,null,null,null,null,{"$error":"#DIV/0!"},{"$error":"#DIV/0!"},null,null,null,null,null,null,null,null,{"$error":"#DIV/0!"},{"$error":"#DIV/0!"},null,null,null,null,null,null,null,null,{"$error":"#DIV/0!"},{"$error":"#DIV/0!"},{"$error":"#DIV/0!"}]
[null,null,null,null,0,null,null,null,null,null,{"$error":"#DIV/0!"},{"$error":"#DIV/0!"},null,null,null,null,null,null,null,null,{"$error":"#DIV/0!"},{"$error":"#DIV/0!"},null,null,null,null,null,null,null,null,{"$error":"#DIV/0!"},{"$error":"#DIV/0!"},{"$error":"#DIV/0!"}]
[null,null,null,null,0,null,null,null,null,null,{"$error":"#DIV/0!"},{"$error":"#DIV/0!"},null,null,null,null,null,null,null,null,{"$error":"#DIV/0!"},{"$error":"#DIV/0!"},null,null,null,null,null,null,null,null,{"$error":"#DIV/0!"},{"$error":"#DIV/0!"},{"$error":"#DIV/0!"}]
[null,null,null,null,0,null,null,null,null,null,{"$error":"#DIV/0!"},{"$error":"#DIV/0!"},null,null,null,null,null,null,null,null,{"$error":"#DIV/0!"},{"$error":"#DIV/0!"},null,null,null,null,null,null,null,null,{"$error":"#DIV/0!"},{"$error":"#DIV/0!"},{"$error":"#DIV/0!"}]
[null,null,null,null,0,null,null,null,null,null,{"$error":"#DIV/0!"},{"$error":"#DIV/0!"},null,null,null,null,null,null,null,null,{"$error":"#DIV/0!"},{"$error":"#DIV/0!"},null,null,null,null,null,null,null,null,{"$error":"#DIV/0!"},{"$error":"#DIV/0!"},{"$error":"#DIV/0!"}]
[null,null,null,null,0,null,null,null,null,null,{"$error":"#DIV/0!"},{"$error":"#DIV/0!"},null,null,null,null,null,null,null,null,{"$error":"#DIV/0!"},{"$error":"#DIV/0!"},null,null,null,null,null,null,null,null,{"$error":"#DIV/0!"},{"$error":"#DIV/0!"},{"$error":"#DIV/0!"}]
[null,null,null,null,0,null,null,null,null,null,{"$error":"#DIV/0!"},{"$error":"#DIV/0!"},null,null,null,null,null,null,null,null,{"$error":"#DIV/0!"},{"$error":"#DIV/0!"},null,null,null,null,null,null,null,null,{"$error":"#DIV/0!"},{"$error":"#DIV/0!"},{"$error":"#DIV/0!"}]
[null,null,null,null,0,null,null,null,null,null,{"$error":"#DIV/0!"},{"$error":"#DIV/0!"},null,null,null,null,null,null,null,null,{"$error":"#DIV/0!"},{"$error":"#DIV/0!"},null,null,null,null,null,null,null,null,{"$error":"#DIV/0!"},{"$error":"#DIV/0!"},{"$error":"#DIV/0!"}]
[null,null,null,null,0,null,null,null,null,null,{"$error":"#DIV/0!"},{"$error":"#DIV/0!"},null,null,null,null,null,null,null,null,{"$error":"#DIV/0!"},{"$error":"#DIV/0!"},null,null,null,null,null,null,null,null,{"$error":"#DIV/0!"},{"$error":"#DIV/0!"},{"$error":"#DIV/0!"}]
[null,null,null,null,0,null,null,null,null,null,{"$error":"#DIV/0!"},{"$error":"#DIV/0!"},null,null,null,null,null,null,null,null,{"$error":"#DIV/0!"},{"$error":"#DIV/0!"},null,null,null,null,null,null,null,null,{"$error":"#DIV/0!"},{"$error":"#DIV/0!"},{"$error":"#DIV/0!"}]
[null,null,null,null,0,null,null,null,null,null,{"$error":"#DIV/0!"},{"$error":"#DIV/0!"},null,null,null,null,null,null,null,null,{"$error":"#DIV/0!"},{"$error":"#DIV/0!"},null,null,null,null,null,null,null,null,{"$error":"#DIV/0!"},{"$error":"#DIV/0!"},{"$error":"#DIV/0!"}]
[null,null,null,null,0,null,null,null,null,null,{"$error":"#DIV/0!"},{"$error":"#DIV/0!"},null,null,null,null,null,null,null,null,{"$error":"#DIV/0!"},{"$error":"#DIV/0!"},null,null,null,null,null,null,null,null,{"$error":"#DIV/0!"},{"$error":"#DIV/0!"},{"$error":"#DIV/0!"}]
[null,null,null,null,0,null,null,null,null,null,{"$error":"#DIV/0!"},{"$error":"#DIV/0!"},null,null,null,null,null,null,null,null,{"$error":"#DIV/0!"},{"$error":"#DIV/0!"},null,null,null,null,null,null,null,null,{"$error":"#DIV/0!"},{"$error":"#DIV/0!"},{"$error":"#DIV/0!"}]
[null,null,null,null,0,null,null,null,null,null,{"$error":"#DIV/0!"},{"$error":"#DIV/0!"},null,null,null,null,null,null,null,null,{"$error":"#DIV/0!"},{"$error":"#DIV/0!"},null,null,null,null,null,null,null,null,{"$error":"#DIV/0!"},{"$error":"#DIV/0!"},{"$error":"#DIV/0!"}]
[null,null,null,null,0,null,null,null,null,null,{"$error":"#DIV/0!"},{"$error":"#DIV/0!"},null,null,null,null,null,null,null,null,{"$error":"#DIV/0!"},{"$error":"#DIV/0!"},null,null,null,null,null,null,null,null,{"$error":"#DIV/0!"},{"$error":"#DIV/0!"},{"$error":"#DIV/0!"}]
[null,null,null,null,0,null,null,null,null,null,{"$error":"#DIV/0!"},{"$error":"#DIV/0!"},null,null,null,null,null,null,null,null,{"$error":"#DIV/0!"},{"$error":"#DIV/0!"},null,null,null,null,null,null,null,null,{"$error":"#DIV/0!"},{"$error":"#DIV/0!"},{"$error":"#DIV/0!"}]
[null,null,null,null,0,null,null,null,null,null,{"$error":"#DIV/0!"},{"$error":"#DIV/0!"},null,null,null,null,null,null,null,null,{"$error":"#DIV/0!"},{"$error":"#DIV/0!"},null,null,null,null,null,null,null,null,{"$error":"#DIV/0!"},{"$error":"#DIV/0!"},{"$error":"#DIV/0!"}]
[null,null,null,null,0,null,null,null,null,null,{"$error":"#DIV/0!"},{"$error":"#DIV/0!"},null,null,null,null,null,null,null,null,{"$error":"#DIV/0!"},{"$error":"#DIV/0!"},null,null,null,null,null,null,null,null,{"$error":"#DIV/0!"},{"$error":"#DIV/0!"},{"$error":"#DIV/0!"}]
[null,null,null,null,0,null,null,null,null,null,{"$error":"#DIV/0!"},{"$error":"#DIV/0!"},null,null,null,null,null,null,null,null,{"$error":"#DIV/0!"},{"$error":"#DIV/0!"},null,null,null,null,null,null,null,null,{"$error":"#DIV/0!"},{"$error":"#DIV/0!"},{"$error":"#DIV/0!"}]
[null,null,null,null,0,null,null,null,null,null,{"$error":"#DIV/0!"},{"$error":"#DIV/0!"},null,null,null,null,null,null,null,null,{"$error":"#DIV/0!"},{"$error":"#DIV/0!"},null,null,null,null,null,null,null,null,{"$error":"#DIV/0!"},{"$error":"#DIV/0!"},{"$error":"#DIV/0!"}]
[null,null,null,null,0,null,null,null,null,null,{"$error":"#DIV/0!"},{"$error":"#DIV/0!"},null,null,null,null,null,null,null,null,{"$error":"#DIV/0!"},{"$error":"#DIV/0!"},null,null,null,null,null,null,null,null,{"$error":"#DIV/0!"},{"$error":"#DIV/0!"},{"$error":"#DIV/0!"}]
[null,null,null,null,0,null,null,null,null,null,{"$error":"#DIV/0!"},{"$error":"#DIV/0!"},null,null,null,null,null,null,null,null,{"$error":"#DIV/0!"},{"$error":"#DIV/0!"},null,null,null,null,null,null,null,null,{"$error":"#DIV/0!"},{"$error":"#DIV/0!"},{"$error":"#DIV/0!"}]
[null,null,null,null,0,null,null,null,null,null,{"$error":"#DIV/0!"},{"$error":"#DIV/0!"},null,null,null,null,null,null,null,null,{"$error":"#DIV/0!"},{"$error":"#DIV/0!"},null,null,null,null,null,null,null,null,{"$error":"#DIV/0!"},{"$error":"#DIV/0!"},{"$error":"#DIV/0!"}]
[null,null,null,null,0,null,null,null,null,null,{"$error":"#DIV/0!"},{"$error":"#DIV/0!"},null,null,null,null,null,null,null,null,{"$error":"#DIV/0!"},{"$error":"#DIV/0!"},null,null,null,null,null,null,null,null,{"$error":"#DIV/0!"},{"$error":"#DIV/0!"},{"$error":"#DIV/0!"}]
[null,null,null,null,0,null,null,null,null,null,{"$error":"#DIV/0!"},{"$error":"#DIV/0!"},null,null,null,null,null,null,null,null,{"$error":"#DIV/0!"},{"$error":"#DIV/0!"},null,null,null,null,null,null,null,null,{"$error":"#DIV/0!"},{"$error":"#DIV/0!"},{"$error":"#DIV/0!"}]
[null,null,null,null,0,null,null,null,null,null,{"$error":"#DIV/0!"},{"$error":"#DIV/0!"},null,null,null,null,null,null,null,null,{"$error":"#DIV/0!"},{"$error":"#DIV/0!"},null,null,null,null,null,null,null,null,{"$error":"#DIV/0!"},{"$error":"#DIV/0!"},{"$error":"#DIV/0!"}]
[null,null,null,null,0,null,null,null,null,null,{"$error":"#DIV/0!"},{"$error":"#DIV/0!"},null,null,null,null,null,null,null,null,{"$error":"#DIV/0!"},{"$error":"#DIV/0!"},null,null,null,null,null,null,null,null,{"$error":"#DIV/0!"},{"$error":"#DIV/0!"},{"$error":"#DIV/0!"}]
[null,null,null,null,0,null,null,null,null,null,{"$error":"#DIV/0!"},{"$error":"#DIV/0!"},null,null,null,null,null,null,null,null,{"$error":"#DIV/0!"},{"$error":"#DIV/0!"},null,null,null,null,null,null,null,null,{"$error":"#DIV/0!"},{"$error":"#DIV/0!"},{"$error":"#DIV/0!"}]
[null,null,null,null,0,null,null,null,null,null,{"$error":"#DIV/0!"},{"$error":"#DIV/0!"},null,null,null,null,null,null,null,null,{"$error":"#DIV/0!"},{"$error":"#DIV/0!"},null,null,null,null,null,null,null,null,{"$error":"#DIV/0!"},{"$error":"#DIV/0!"},{"$error":"#DIV/0!"}]

{"sheet":"軍訓","index":10,"n_rows":56,"n_cols":36,"rows_kept":56,"cut":false,"hidden":true,"merged":[[3,13,5,13],[3,11,3,12],[3,4,3,10],[1,35,5,35],[2,21,4,21],[4,4,5,4],[4,5,5,5],[4,6,5,6],[4,7,5,7],[3,15,5,15],[2,23,2,30],[2,31,2,32],[3,23,5,23],[3,24,5,24]]}
["班級編號"]
["課程編號","課程序號","課程類別",null,null,null,null,"軍",null,null,null,"訓",null,null,null,"成",null,null,null,"績",null,null,null,null,"護",null,null,"理",null,null,"成",null,null,"績",null,"本學期軍護成績"]
[null,null,null,null,null,"學",null,null,null,null,null,null,null,"科",null,null,"術",null,null,"科",null,"軍訓成績",null,"平時測驗",null,null,null,null,null,null,null,"期末測驗",null,"護",50]
[null,null,null,null,"平時測驗",null,null,null,null,null,null,"期末測驗",null,"學科合計",null,"平時成績",null,null,"合","平",null,null,null,"期中考","平時考",null,null,null,null,null,null,null,null,"理"]
["學","座","姓","性","期中考","平時考",null,null,"小","平",60,"分",40,null,50,null,null,null,null,null,50,null,50,null,null,null,null,null,"小","平",60,"分",40,"成",50]
["號","號","名","別",null,null,null,null,"計","均","％","數","％",null,"％",null,null,null,"計","均","％","績","％",null,null,null,null,null,"計","均","％","數","％","績","％"]
[null,null,null,null,null,null,null,null,{"$f":"SUM(E7:H7)","v":0},{"$f":"AVERAGE(E7:H7)","v":{"$error":"#DIV/0!"}},{"$f":"J7*0.6","v":{"$error":"#DIV/0!"}},null,{"$f":"L7*0.4","v":0},{"$f":"K7+M7","v":{"$error":"#DIV/0!"}},{"$f":"N7*0.5","v":{"$error":"#DIV/0!"}},null,null,null,{"$f":"SUM(P7:R7)","v":0},{"$f":"AVERAGE(P7:R7)","v":{"$error":"#DIV/0!"}},{"$f":"T7*0.5","v":{"$error":"#DIV/0!"}},{"$f":"O7+U7","v":{"$error":"#DIV/0!"}},{"$f":"V7*0.5","v":{"$error":"#DIV/0!"}},null,null,null,null,null,{"$f":"SUM(X7:AB7)","v":0},{"$f":"AVERAGE(X7:AB7)","v":{"$error":"#DIV/0!"}},{"$f":"AD7*0.6","v":{"$error":"#DIV/0!"}},null,{"$f":"AF7*0.4","v":0},{"$f":"AE7+AG7","v":{"$error":"#DIV/0!"}},{"$f":"AH7*0.5","v":{"$error":"#DIV/0!"}},{"$f":"V7","v":{"$error":"#DIV/0!"}}]
[null,null,null,null,null,null,null,null,0,{"$error":"#DIV/0!"},{"$error":"#DIV/0!"},null,0,{"$error":"#DIV/0!"},{"$error":"#DIV/0!"},null,null,null,0,{"$error":"#DIV/0!"},{"$error":"#DIV/0!"},{"$error":"#DIV/0!"},{"$error":"#DIV/0!"},null,null,null,null,null,0,{"$error":"#DIV/0!"},{"$error":"#DIV/0!"},null,0,{"$error":"#DIV/0!"},{"$error":"#DIV/0!"},{"$error":"#DIV/0!"}]
[null,null,null,null,null,null,null,null,0,{"$error":"#DIV/0!"},{"$error":"#DIV/0!"},null,0,{"$error":"#DIV/0!"},{"$error":"#DIV/0!"},null,null,null,0,{"$error":"#DIV/0!"},{"$error":"#DIV/0!"},{"$error":"#DIV/0!"},{"$error":"#DIV/0!"},null,null,null,null,null,0,{"$error":"#DIV/0!"},{"$error":"#DIV/0!"},null,0,{"$error":"#DIV/0!"},{"$error":"#DIV/0!"},{"$error":"#DIV/0!"}]
[null,null,null,null,null,null,null,null,0,{"$error":"#DIV/0!"},{"$error":"#DIV/0!"},null,0,{"$error":"#DIV/0!"},{"$error":"#DIV/0!"},null,null,null,0,{"$error":"#DIV/0!"},{"$error":"#DIV/0!"},{"$error":"#DIV/0!"},{"$error":"#DIV/0!"},null,null,null,null,null,0,{"$error":"#DIV/0!"},{"$error":"#DIV/0!"},null,0,{"$error":"#DIV/0!"},{"$error":"#DIV/0!"},{"$error":"#DIV/0!"}]
[null,null,null,null,null,null,null,null,0,{"$error":"#DIV/0!"},{"$error":"#DIV/0!"},null,0,{"$error":"#DIV/0!"},{"$error":"#DIV/0!"},null,null,null,0,{"$error":"#DIV/0!"},{"$error":"#DIV/0!"},{"$error":"#DIV/0!"},{"$error":"#DIV/0!"},null,null,null,null,null,0,{"$error":"#DIV/0!"},{"$error":"#DIV/0!"},null,0,{"$error":"#DIV/0!"},{"$error":"#DIV/0!"},{"$error":"#DIV/0!"}]
[null,null,null,null,null,null,null,null,0,{"$error":"#DIV/0!"},{"$error":"#DIV/0!"},null,0,{"$error":"#DIV/0!"},{"$error":"#DIV/0!"},null,null,null,0,{"$error":"#DIV/0!"},{"$error":"#DIV/0!"},{"$error":"#DIV/0!"},{"$error":"#DIV/0!"},null,null,null,null,null,0,{"$error":"#DIV/0!"},{"$error":"#DIV/0!"},null,0,{"$error":"#DIV/0!"},{"$error":"#DIV/0!"},{"$error":"#DIV/0!"}]
[null,null,null,null,null,null,null,null,0,{"$error":"#DIV/0!"},{"$error":"#DIV/0!"},null,0,{"$error":"#DIV/0!"},{"$error":"#DIV/0!"},null,null,null,0,{"$error":"#DIV/0!"},{"$error":"#DIV/0!"},{"$error":"#DIV/0!"},{"$error":"#DIV/0!"},null,null,null,null,null,0,{"$error":"#DIV/0!"},{"$error":"#DIV/0!"},null,0,{"$error":"#DIV/0!"},{"$error":"#DIV/0!"},{"$error":"#DIV/0!"}]
[null,null,null,null,null,null,null,null,0,{"$error":"#DIV/0!"},{"$error":"#DIV/0!"},null,0,{"$error":"#DIV/0!"},{"$error":"#DIV/0!"},null,null,null,0,{"$error":"#DIV/0!"},{"$error":"#DIV/0!"},{"$error":"#DIV/0!"},{"$error":"#DIV/0!"},null,null,null,null,null,0,{"$error":"#DIV/0!"},{"$error":"#DIV/0!"},null,0,{"$error":"#DIV/0!"},{"$error":"#DIV/0!"},{"$error":"#DIV/0!"}]
[null,null,null,null,null,null,null,null,0,{"$error":"#DIV/0!"},{"$error":"#DIV/0!"},null,0,{"$error":"#DIV/0!"},{"$error":"#DIV/0!"},null,null,null,0,{"$error":"#DIV/0!"},{"$error":"#DIV/0!"},{"$error":"#DIV/0!"},{"$error":"#DIV/0!"},null,null,null,null,null,0,{"$error":"#DIV/0!"},{"$error":"#DIV/0!"},null,0,{"$error":"#DIV/0!"},{"$error":"#DIV/0!"},{"$error":"#DIV/0!"}]
[null,null,null,null,null,null,null,null,0,{"$error":"#DIV/0!"},{"$error":"#DIV/0!"},null,0,{"$error":"#DIV/0!"},{"$error":"#DIV/0!"},null,null,null,0,{"$error":"#DIV/0!"},{"$error":"#DIV/0!"},{"$error":"#DIV/0!"},{"$error":"#DIV/0!"},null,null,null,null,null,0,{"$error":"#DIV/0!"},{"$error":"#DIV/0!"},null,0,{"$error":"#DIV/0!"},{"$error":"#DIV/0!"},{"$error":"#DIV/0!"}]
[null,null,null,null,null,null,null,null,0,{"$error":"#DIV/0!"},{"$error":"#DIV/0!"},null,0,{"$error":"#DIV/0!"},{"$error":"#DIV/0!"},null,null,null,0,{"$error":"#DIV/0!"},{"$error":"#DIV/0!"},{"$error":"#DIV/0!"},{"$error":"#DIV/0!"},null,null,null,null,null,0,{"$error":"#DIV/0!"},{"$error":"#DIV/0!"},null,0,{"$error":"#DIV/0!"},{"$error":"#DIV/0!"},{"$error":"#DIV/0!"}]
[null,null,null,null,null,null,null,null,0,{"$error":"#DIV/0!"},{"$error":"#DIV/0!"},null,0,{"$error":"#DIV/0!"},{"$error":"#DIV/0!"},null,null,null,0,{"$error":"#DIV/0!"},{"$error":"#DIV/0!"},{"$error":"#DIV/0!"},{"$error":"#DIV/0!"},null,null,null,null,null,0,{"$error":"#DIV/0!"},{"$error":"#DIV/0!"},null,0,{"$error":"#DIV/0!"},{"$error":"#DIV/0!"},{"$error":"#DIV/0!"}]
[null,null,null,null,null,null,null,null,0,{"$error":"#DIV/0!"},{"$error":"#DIV/0!"},null,0,{"$error":"#DIV/0!"},{"$error":"#DIV/0!"},null,null,null,0,{"$error":"#DIV/0!"},{"$error":"#DIV/0!"},{"$error":"#DIV/0!"},{"$error":"#DIV/0!"},null,null,null,null,null,0,{"$error":"#DIV/0!"},{"$error":"#DIV/0!"},null,0,{"$error":"#DIV/0!"},{"$error":"#DIV/0!"},{"$error":"#DIV/0!"}]
[null,null,null,null,null,null,null,null,0,{"$error":"#DIV/0!"},{"$error":"#DIV/0!"},null,0,{"$error":"#DIV/0!"},{"$error":"#DIV/0!"},null,null,null,0,{"$error":"#DIV/0!"},{"$error":"#DIV/0!"},{"$error":"#DIV/0!"},{"$error":"#DIV/0!"},null,null,null,null,null,0,{"$error":"#DIV/0!"},{"$error":"#DIV/0!"},null,0,{"$error":"#DIV/0!"},{"$error":"#DIV/0!"},{"$error":"#DIV/0!"}]
[null,null,null,null,null,null,null,null,0,{"$error":"#DIV/0!"},{"$error":"#DIV/0!"},null,0,{"$error":"#DIV/0!"},{"$error":"#DIV/0!"},null,null,null,0,{"$error":"#DIV/0!"},{"$error":"#DIV/0!"},{"$error":"#DIV/0!"},{"$error":"#DIV/0!"},null,null,null,null,null,0,{"$error":"#DIV/0!"},{"$error":"#DIV/0!"},null,0,{"$error":"#DIV/0!"},{"$error":"#DIV/0!"},{"$error":"#DIV/0!"}]
[null,null,null,null,null,null,null,null,0,{"$error":"#DIV/0!"},{"$error":"#DIV/0!"},null,0,{"$error":"#DIV/0!"},{"$error":"#DIV/0!"},null,null,null,0,{"$error":"#DIV/0!"},{"$error":"#DIV/0!"},{"$error":"#DIV/0!"},{"$error":"#DIV/0!"},null,null,null,null,null,0,{"$error":"#DIV/0!"},{"$error":"#DIV/0!"},null,0,{"$error":"#DIV/0!"},{"$error":"#DIV/0!"},{"$error":"#DIV/0!"}]
[null,null,null,null,null,null,null,null,0,{"$error":"#DIV/0!"},{"$error":"#DIV/0!"},null,0,{"$error":"#DIV/0!"},{"$error":"#DIV/0!"},null,null,null,0,{"$error":"#DIV/0!"},{"$error":"#DIV/0!"},{"$error":"#DIV/0!"},{"$error":"#DIV/0!"},null,null,null,null,null,0,{"$error":"#DIV/0!"},{"$error":"#DIV/0!"},null,0,{"$error":"#DIV/0!"},{"$error":"#DIV/0!"},{"$f":"W23+AI23","v":{"$error":"#DIV/0!"}}]
[null,null,null,null,null,null,null,null,0,{"$error":"#DIV/0!"},{"$error":"#DIV/0!"},null,0,{"$error":"#DIV/0!"},{"$error":"#DIV/0!"},null,null,null,0,{"$error":"#DIV/0!"},{"$error":"#DIV/0!"},{"$error":"#DIV/0!"},{"$error":"#DIV/0!"},null,null,null,null,null,0,{"$error":"#DIV/0!"},{"$error":"#DIV/0!"},null,0,{"$error":"#DIV/0!"},{"$error":"#DIV/0!"},{"$error":"#DIV/0!"}]
[null,null,null,null,null,null,null,null,0,{"$error":"#DIV/0!"},{"$error":"#DIV/0!"},null,0,{"$error":"#DIV/0!"},{"$error":"#DIV/0!"},null,null,null,0,{"$error":"#DIV/0!"},{"$error":"#DIV/0!"},{"$error":"#DIV/0!"},{"$error":"#DIV/0!"},null,null,null,null,null,0,{"$error":"#DIV/0!"},{"$error":"#DIV/0!"},null,0,{"$error":"#DIV/0!"},{"$error":"#DIV/0!"},{"$error":"#DIV/0!"}]
[null,null,null,null,null,null,null,null,0,{"$error":"#DIV/0!"},{"$error":"#DIV/0!"},null,0,{"$error":"#DIV/0!"},{"$error":"#DIV/0!"},null,null,null,0,{"$error":"#DIV/0!"},{"$error":"#DIV/0!"},{"$error":"#DIV/0!"},{"$error":"#DIV/0!"},null,null,null,null,null,0,{"$error":"#DIV/0!"},{"$error":"#DIV/0!"},null,0,{"$error":"#DIV/0!"},{"$error":"#DIV/0!"},{"$error":"#DIV/0!"}]
[null,null,null,null,null,null,null,null,0,{"$error":"#DIV/0!"},{"$error":"#DIV/0!"},null,0,{"$error":"#DIV/0!"},{"$error":"#DIV/0!"},null,null,null,0,{"$error":"#DIV/0!"},{"$error":"#DIV/0!"},{"$error":"#DIV/0!"},{"$error":"#DIV/0!"},null,null,null,null,null,0,{"$error":"#DIV/0!"},{"$error":"#DIV/0!"},null,0,{"$error":"#DIV/0!"},{"$error":"#DIV/0!"},{"$error":"#DIV/0!"}]
[null,null,null,null,null,null,null,null,0,{"$error":"#DIV/0!"},{"$error":"#DIV/0!"},null,0,{"$error":"#DIV/0!"},{"$error":"#DIV/0!"},null,null,null,0,{"$error":"#DIV/0!"},{"$error":"#DIV/0!"},{"$error":"#DIV/0!"},{"$error":"#DIV/0!"},null,null,null,null,null,0,{"$error":"#DIV/0!"},{"$error":"#DIV/0!"},null,0,{"$error":"#DIV/0!"},{"$error":"#DIV/0!"},{"$error":"#DIV/0!"}]
[null,null,null,null,null,null,null,null,0,{"$error":"#DIV/0!"},{"$error":"#DIV/0!"},null,0,{"$error":"#DIV/0!"},{"$error":"#DIV/0!"},null,null,null,0,{"$error":"#DIV/0!"},{"$error":"#DIV/0!"},{"$error":"#DIV/0!"},{"$error":"#DIV/0!"},null,null,null,null,null,0,{"$error":"#DIV/0!"},{"$error":"#DIV/0!"},null,0,{"$error":"#DIV/0!"},{"$error":"#DIV/0!"},{"$error":"#DIV/0!"}]
[null,null,null,null,null,null,null,null,0,{"$error":"#DIV/0!"},{"$error":"#DIV/0!"},null,0,{"$error":"#DIV/0!"},{"$error":"#DIV/0!"},null,null,null,0,{"$error":"#DIV/0!"},{"$error":"#DIV/0!"},{"$error":"#DIV/0!"},{"$error":"#DIV/0!"},null,null,null,null,null,0,{"$error":"#DIV/0!"},{"$error":"#DIV/0!"},null,0,{"$error":"#DIV/0!"},{"$error":"#DIV/0!"},{"$error":"#DIV/0!"}]
[null,null,null,null,null,null,null,null,0,{"$error":"#DIV/0!"},{"$error":"#DIV/0!"},null,0,{"$error":"#DIV/0!"},{"$error":"#DIV/0!"},null,null,null,0,{"$error":"#DIV/0!"},{"$error":"#DIV/0!"},{"$error":"#DIV/0!"},{"$error":"#DIV/0!"},null,null,null,null,null,0,{"$error":"#DIV/0!"},{"$error":"#DIV/0!"},null,0,{"$error":"#DIV/0!"},{"$error":"#DIV/0!"},{"$error":"#DIV/0!"}]
[null,null,null,null,null,null,null,null,0,{"$error":"#DIV/0!"},{"$error":"#DIV/0!"},null,0,{"$error":"#DIV/0!"},{"$error":"#DIV/0!"},null,null,null,0,{"$error":"#DIV/0!"},{"$error":"#DIV/0!"},{"$error":"#DIV/0!"},{"$error":"#DIV/0!"},null,null,null,null,null,0,{"$error":"#DIV/0!"},{"$error":"#DIV/0!"},null,0,{"$error":"#DIV/0!"},{"$error":"#DIV/0!"},{"$error":"#DIV/0!"}]
[null,null,null,null,null,null,null,null,0,{"$error":"#DIV/0!"},{"$error":"#DIV/0!"},null,0,{"$error":"#DIV/0!"},{"$error":"#DIV/0!"},null,null,null,0,{"$error":"#DIV/0!"},{"$error":"#DIV/0!"},{"$error":"#DIV/0!"},{"$error":"#DIV/0!"},null,null,null,null,null,0,{"$error":"#DIV/0!"},{"$error":"#DIV/0!"},null,0,{"$error":"#DIV/0!"},{"$error":"#DIV/0!"},{"$error":"#DIV/0!"}]
[null,null,null,null,null,null,null,null,0,{"$error":"#DIV/0!"},{"$error":"#DIV/0!"},null,0,{"$error":"#DIV/0!"},{"$error":"#DIV/0!"},null,null,null,0,{"$error":"#DIV/0!"},{"$error":"#DIV/0!"},{"$error":"#DIV/0!"},{"$error":"#DIV/0!"},null,null,null,null,null,0,{"$error":"#DIV/0!"},{"$error":"#DIV/0!"},null,0,{"$error":"#DIV/0!"},{"$error":"#DIV/0!"},{"$error":"#DIV/0!"}]
[null,null,null,null,null,null,null,null,0,{"$error":"#DIV/0!"},{"$error":"#DIV/0!"},null,0,{"$error":"#DIV/0!"},{"$error":"#DIV/0!"},null,null,null,0,{"$error":"#DIV/0!"},{"$error":"#DIV/0!"},{"$error":"#DIV/0!"},{"$error":"#DIV/0!"},null,null,null,null,null,0,{"$error":"#DIV/0!"},{"$error":"#DIV/0!"},null,0,{"$error":"#DIV/0!"},{"$error":"#DIV/0!"},{"$error":"#DIV/0!"}]
[null,null,null,null,null,null,null,null,0,{"$error":"#DIV/0!"},{"$error":"#DIV/0!"},null,0,{"$error":"#DIV/0!"},{"$error":"#DIV/0!"},null,null,null,0,{"$error":"#DIV/0!"},{"$error":"#DIV/0!"},{"$error":"#DIV/0!"},{"$error":"#DIV/0!"},null,null,null,null,null,0,{"$error":"#DIV/0!"},{"$error":"#DIV/0!"},null,0,{"$error":"#DIV/0!"},{"$error":"#DIV/0!"},{"$error":"#DIV/0!"}]
[null,null,null,null,null,null,null,null,0,{"$error":"#DIV/0!"},{"$error":"#DIV/0!"},null,0,{"$error":"#DIV/0!"},{"$error":"#DIV/0!"},null,null,null,0,{"$error":"#DIV/0!"},{"$error":"#DIV/0!"},{"$error":"#DIV/0!"},{"$error":"#DIV/0!"},null,null,null,null,null,0,{"$error":"#DIV/0!"},{"$error":"#DIV/0!"},null,0,{"$error":"#DIV/0!"},{"$error":"#DIV/0!"},{"$error":"#DIV/0!"}]
[null,null,null,null,null,null,null,null,0,{"$error":"#DIV/0!"},{"$error":"#DIV/0!"},null,0,{"$error":"#DIV/0!"},{"$error":"#DIV/0!"},null,null,null,0,{"$error":"#DIV/0!"},{"$error":"#DIV/0!"},{"$error":"#DIV/0!"},{"$error":"#DIV/0!"},null,null,null,null,null,0,{"$error":"#DIV/0!"},{"$error":"#DIV/0!"},null,0,{"$error":"#DIV/0!"},{"$error":"#DIV/0!"},{"$error":"#DIV/0!"}]
[null,null,null,null,null,null,null,null,{"$f":"SUM(E39:H39)","v":0},{"$f":"AVERAGE(E39:H39)","v":{"$error":"#DIV/0!"}},{"$f":"J39*0.6","v":{"$error":"#DIV/0!"}},null,{"$f":"L39*0.4","v":0},{"$f":"K39+M39","v":{"$error":"#DIV/0!"}},{"$f":"N39*0.5","v":{"$error":"#DIV/0!"}},null,null,null,{"$f":"SUM(P39:R39)","v":0},{"$f":"AVERAGE(P39:R39)","v":{"$error":"#DIV/0!"}},{"$f":"T39*0.5","v":{"$error":"#DIV/0!"}},{"$f":"O39+U39","v":{"$error":"#DIV/0!"}},{"$f":"V39*0.5","v":{"$error":"#DIV/0!"}},null,null,null,null,null,{"$f":"SUM(X39:AB39)","v":0},{"$f":"AVERAGE(X39:AB39)","v":{"$error":"#DIV/0!"}},{"$f":"AD39*0.6","v":{"$error":"#DIV/0!"}},null,{"$f":"AF39*0.4","v":0},{"$f":"AE39+AG39","v":{"$error":"#DIV/0!"}},{"$f":"AH39*0.5","v":{"$error":"#DIV/0!"}},{"$error":"#DIV/0!"}]
[null,null,null,null,null,null,null,null,0,{"$error":"#DIV/0!"},{"$error":"#DIV/0!"},null,0,{"$error":"#DIV/0!"},{"$error":"#DIV/0!"},null,null,null,0,{"$error":"#DIV/0!"},{"$error":"#DIV/0!"},{"$error":"#DIV/0!"},{"$error":"#DIV/0!"},null,null,null,null,null,0,{"$error":"#DIV/0!"},{"$error":"#DIV/0!"},null,0,{"$error":"#DIV/0!"},{"$error":"#DIV/0!"},{"$error":"#DIV/0!"}]
[null,null,null,null,null,null,null,null,0,{"$error":"#DIV/0!"},{"$error":"#DIV/0!"},null,0,{"$error":"#DIV/0!"},{"$error":"#DIV/0!"},null,null,null,0,{"$error":"#DIV/0!"},{"$error":"#DIV/0!"},{"$error":"#DIV/0!"},{"$error":"#DIV/0!"},null,null,null,null,null,0,{"$error":"#DIV/0!"},{"$error":"#DIV/0!"},null,0,{"$error":"#DIV/0!"},{"$error":"#DIV/0!"},{"$error":"#DIV/0!"}]
[null,null,null,null,null,null,null,null,0,{"$error":"#DIV/0!"},{"$error":"#DIV/0!"},null,0,{"$error":"#DIV/0!"},{"$error":"#DIV/0!"},null,null,null,0,{"$error":"#DIV/0!"},{"$error":"#DIV/0!"},{"$error":"#DIV/0!"},{"$error":"#DIV/0!"},null,null,null,null,null,0,{"$error":"#DIV/0!"},{"$error":"#DIV/0!"},null,0,{"$error":"#DIV/0!"},{"$error":"#DIV/0!"},{"$error":"#DIV/0!"}]
[null,null,null,null,null,null,null,null,0,{"$error":"#DIV/0!"},{"$error":"#DIV/0!"},null,0,{"$error":"#DIV/0!"},{"$error":"#DIV/0!"},null,null,null,0,{"$error":"#DIV/0!"},{"$error":"#DIV/0!"},{"$error":"#DIV/0!"},{"$error":"#DIV/0!"},null,null,null,null,null,0,{"$error":"#DIV/0!"},{"$error":"#DIV/0!"},null,0,{"$error":"#DIV/0!"},{"$error":"#DIV/0!"},{"$error":"#DIV/0!"}]
[null,null,null,null,null,null,null,null,0,{"$error":"#DIV/0!"},{"$error":"#DIV/0!"},null,0,{"$error":"#DIV/0!"},{"$error":"#DIV/0!"},null,null,null,0,{"$error":"#DIV/0!"},{"$error":"#DIV/0!"},{"$error":"#DIV/0!"},{"$error":"#DIV/0!"},null,null,null,null,null,0,{"$error":"#DIV/0!"},{"$error":"#DIV/0!"},null,0,{"$error":"#DIV/0!"},{"$error":"#DIV/0!"},{"$error":"#DIV/0!"}]
[null,null,null,null,null,null,null,null,0,{"$error":"#DIV/0!"},{"$error":"#DIV/0!"},null,0,{"$error":"#DIV/0!"},{"$error":"#DIV/0!"},null,null,null,0,{"$error":"#DIV/0!"},{"$error":"#DIV/0!"},{"$error":"#DIV/0!"},{"$error":"#DIV/0!"},null,null,null,null,null,0,{"$error":"#DIV/0!"},{"$error":"#DIV/0!"},null,0,{"$error":"#DIV/0!"},{"$error":"#DIV/0!"},{"$error":"#DIV/0!"}]
[null,null,null,null,null,null,null,null,0,{"$error":"#DIV/0!"},{"$error":"#DIV/0!"},null,0,{"$error":"#DIV/0!"},{"$error":"#DIV/0!"},null,null,null,0,{"$error":"#DIV/0!"},{"$error":"#DIV/0!"},{"$error":"#DIV/0!"},{"$error":"#DIV/0!"},null,null,null,null,null,0,{"$error":"#DIV/0!"},{"$error":"#DIV/0!"},null,0,{"$error":"#DIV/0!"},{"$error":"#DIV/0!"},{"$error":"#DIV/0!"}]
[null,null,null,null,null,null,null,null,0,{"$error":"#DIV/0!"},{"$error":"#DIV/0!"},null,0,{"$error":"#DIV/0!"},{"$error":"#DIV/0!"},null,null,null,0,{"$error":"#DIV/0!"},{"$error":"#DIV/0!"},{"$error":"#DIV/0!"},{"$error":"#DIV/0!"},null,null,null,null,null,0,{"$error":"#DIV/0!"},{"$error":"#DIV/0!"},null,0,{"$error":"#DIV/0!"},{"$error":"#DIV/0!"},{"$error":"#DIV/0!"}]
[null,null,null,null,null,null,null,null,0,{"$error":"#DIV/0!"},{"$error":"#DIV/0!"},null,0,{"$error":"#DIV/0!"},{"$error":"#DIV/0!"},null,null,null,0,{"$error":"#DIV/0!"},{"$error":"#DIV/0!"},{"$error":"#DIV/0!"},{"$error":"#DIV/0!"},null,null,null,null,null,0,{"$error":"#DIV/0!"},{"$error":"#DIV/0!"},null,0,{"$error":"#DIV/0!"},{"$error":"#DIV/0!"},{"$error":"#DIV/0!"}]
[null,null,null,null,null,null,null,null,0,{"$error":"#DIV/0!"},{"$error":"#DIV/0!"},null,0,{"$error":"#DIV/0!"},{"$error":"#DIV/0!"},null,null,null,0,{"$error":"#DIV/0!"},{"$error":"#DIV/0!"},{"$error":"#DIV/0!"},{"$error":"#DIV/0!"},null,null,null,null,null,0,{"$error":"#DIV/0!"},{"$error":"#DIV/0!"},null,0,{"$error":"#DIV/0!"},{"$error":"#DIV/0!"},{"$error":"#DIV/0!"}]
[null,null,null,null,null,null,null,null,0,{"$error":"#DIV/0!"},{"$error":"#DIV/0!"},null,0,{"$error":"#DIV/0!"},{"$error":"#DIV/0!"},null,null,null,0,{"$error":"#DIV/0!"},{"$error":"#DIV/0!"},{"$error":"#DIV/0!"},{"$error":"#DIV/0!"},null,null,null,null,null,0,{"$error":"#DIV/0!"},{"$error":"#DIV/0!"},null,0,{"$error":"#DIV/0!"},{"$error":"#DIV/0!"},{"$error":"#DIV/0!"}]
[null,null,null,null,null,null,null,null,0,{"$error":"#DIV/0!"},{"$error":"#DIV/0!"},null,0,{"$error":"#DIV/0!"},{"$error":"#DIV/0!"},null,null,null,0,{"$error":"#DIV/0!"},{"$error":"#DIV/0!"},{"$error":"#DIV/0!"},{"$error":"#DIV/0!"},null,null,null,null,null,0,{"$error":"#DIV/0!"},{"$error":"#DIV/0!"},null,0,{"$error":"#DIV/0!"},{"$error":"#DIV/0!"},{"$error":"#DIV/0!"}]
[null,null,null,null,null,null,null,null,0,{"$error":"#DIV/0!"},{"$error":"#DIV/0!"},null,0,{"$error":"#DIV/0!"},{"$error":"#DIV/0!"},null,null,null,0,{"$error":"#DIV/0!"},{"$error":"#DIV/0!"},{"$error":"#DIV/0!"},{"$error":"#DIV/0!"},null,null,null,null,null,0,{"$error":"#DIV/0!"},{"$error":"#DIV/0!"},null,0,{"$error":"#DIV/0!"},{"$error":"#DIV/0!"},{"$error":"#DIV/0!"}]
[null,null,null,null,null,null,null,null,0,{"$error":"#DIV/0!"},{"$error":"#DIV/0!"},null,0,{"$error":"#DIV/0!"},{"$error":"#DIV/0!"},null,null,null,0,{"$error":"#DIV/0!"},{"$error":"#DIV/0!"},{"$error":"#DIV/0!"},{"$error":"#DIV/0!"},null,null,null,null,null,0,{"$error":"#DIV/0!"},{"$error":"#DIV/0!"},null,0,{"$error":"#DIV/0!"},{"$error":"#DIV/0!"},{"$error":"#DIV/0!"}]
[null,null,null,null,null,null,null,null,0,{"$error":"#DIV/0!"},{"$error":"#DIV/0!"},null,0,{"$error":"#DIV/0!"},{"$error":"#DIV/0!"},null,null,null,0,{"$error":"#DIV/0!"},{"$error":"#DIV/0!"},{"$error":"#DIV/0!"},{"$error":"#DIV/0!"},null,null,null,null,null,0,{"$error":"#DIV/0!"},{"$error":"#DIV/0!"},null,0,{"$error":"#DIV/0!"},{"$error":"#DIV/0!"},{"$error":"#DIV/0!"}]
[null,null,null,null,null,null,null,null,0,{"$error":"#DIV/0!"},{"$error":"#DIV/0!"},null,0,{"$error":"#DIV/0!"},{"$error":"#DIV/0!"},null,null,null,0,{"$error":"#DIV/0!"},{"$error":"#DIV/0!"},{"$error":"#DIV/0!"},{"$error":"#DIV/0!"},null,null,null,null,null,0,{"$error":"#DIV/0!"},{"$error":"#DIV/0!"},null,0,{"$error":"#DIV/0!"},{"$error":"#DIV/0!"},{"$error":"#DIV/0!"}]
[null,null,null,null,null,null,null,null,0,{"$error":"#DIV/0!"},{"$error":"#DIV/0!"},null,0,{"$error":"#DIV/0!"},{"$error":"#DIV/0!"},null,null,null,0,{"$error":"#DIV/0!"},{"$error":"#DIV/0!"},{"$error":"#DIV/0!"},{"$error":"#DIV/0!"},null,null,null,null,null,0,{"$error":"#DIV/0!"},{"$error":"#DIV/0!"},null,0,{"$error":"#DIV/0!"},{"$error":"#DIV/0!"},{"$error":"#DIV/0!"}]